[Event "*** MasterClass Titled Tuesday Blitz"]
[Site "Chess.com"]
[Date "2017.12.05"]
[Round "2"]
[White "ChessWarrior7197"]
[Black "oliver98"]
[Result "1-0"]
[WhiteElo "2656"]
[BlackElo "2279"]
[TimeControl "180+2"]
[EndTime "14:38:21 PST"]
[Termination "ChessWarrior7197 won on time"]

1. d4 {[%clk 0:03:01.4]} 1... Nf6 {[%clk 0:02:58.8]} 2. c4 {[%clk 0:03:00]} 2...
c5 {[%clk 0:02:48.3]} 3. d5 {[%clk 0:02:58.8]} 3... b5 {[%clk 0:02:49.6]} 4. Nc3
{[%clk 0:02:48.4]} 4... b4 {[%clk 0:02:46.9]} 5. Nb1 {[%clk 0:02:48.8]} 5... d6
{[%clk 0:02:47.8]} 6. g3 {[%clk 0:02:49.1]} 6... g6 {[%clk 0:02:48.5]} 7. Bg2
{[%clk 0:02:50.3]} 7... Bg7 {[%clk 0:02:50]} 8. e4 {[%clk 0:02:50.7]} 8... O-O
{[%clk 0:02:50.4]} 9. Ne2 {[%clk 0:02:51.6]} 9... a5 {[%clk 0:02:50.8]} 10. O-O
{[%clk 0:02:52.9]} 10... Nbd7 {[%clk 0:02:49.8]} 11. Nd2 {[%clk 0:02:49.6]}
11... a4 {[%clk 0:02:47.4]} 12. a3 {[%clk 0:02:48.1]} 12... b3 {[%clk
0:02:39.4]} 13. Nc3 {[%clk 0:02:48.7]} 13... Ne5 {[%clk 0:02:34.7]} 14. Qe2
{[%clk 0:02:35.6]} 14... Bb7 {[%clk 0:02:03.6]} 15. f4 {[%clk 0:02:34.1]} 15...
Ned7 {[%clk 0:02:05]} 16. Nf3 {[%clk 0:02:28.7]} 16... Ne8 {[%clk 0:02:00.4]}
17. Bd2 {[%clk 0:02:27.3]} 17... Nb6 {[%clk 0:01:49.3]} 18. Rfc1 {[%clk
0:02:10.9]} 18... Nc7 {[%clk 0:01:45.3]} 19. Nd1 {[%clk 0:02:09.6]} 19... e6
{[%clk 0:01:37.5]} 20. Bc3 {[%clk 0:02:07.1]} 20... exd5 {[%clk 0:01:34]} 21.
Bxg7 {[%clk 0:01:49.4]} 21... Kxg7 {[%clk 0:01:33.2]} 22. cxd5 {[%clk
0:01:50.1]} 22... Re8 {[%clk 0:01:31.6]} 23. Qd3 {[%clk 0:01:51.1]} 23... Qe7
{[%clk 0:01:25.7]} 24. Nf2 {[%clk 0:01:50.7]} 24... f6 {[%clk 0:01:14]} 25. Re1
{[%clk 0:01:49.2]} 25... Qd7 {[%clk 0:01:08.9]} 26. g4 {[%clk 0:01:42.7]} 26...
Qb5 {[%clk 0:01:09]} 27. Qc3 {[%clk 0:01:41.5]} 27... Qc4 {[%clk 0:01:05.1]} 28.
Qd2 {[%clk 0:01:42]} 28... Qb5 {[%clk 0:00:45.1]} 29. Bf1 {[%clk 0:01:40.7]}
29... Qd7 {[%clk 0:00:37.4]} 30. Qc3 {[%clk 0:01:41.2]} 30... Ba6 {[%clk
0:00:35.3]} 31. g5 {[%clk 0:01:41.8]} 31... Qe7 {[%clk 0:00:32.9]} 32. Ng4
{[%clk 0:01:39.5]} 32... Nd7 {[%clk 0:00:25.2]} 33. Bxa6 {[%clk 0:01:26.7]}
33... Rxa6 {[%clk 0:00:22.7]} 34. Rad1 {[%clk 0:01:26.7]} 34... Kf7 {[%clk
0:00:22.6]} 35. gxf6 {[%clk 0:01:23.8]} 35... Nxf6 {[%clk 0:00:23.4]} 36. Ng5+
{[%clk 0:01:23.1]} 36... Kg7 {[%clk 0:00:24.9]} 37. Nxf6 {[%clk 0:01:08.3]}
37... Qxf6 {[%clk 0:00:25.3]} 38. Qxf6+ {[%clk 0:01:09.7]} 38... Kxf6 {[%clk
0:00:26.8]} 39. Nxh7+ {[%clk 0:01:11.6]} 39... Kg7 {[%clk 0:00:28.2]} 40. Ng5
{[%clk 0:01:13.5]} 40... Nb5 {[%clk 0:00:28.5]} 41. Ne6+ {[%clk 0:01:12.4]}
41... Kf6 {[%clk 0:00:28.5]} 42. e5+ {[%clk 0:01:12.9]} 42... Ke7 {[%clk
0:00:25.9]} 43. Re3 {[%clk 0:01:06.8]} 43... c4 {[%clk 0:00:25.5]} 44. Rh3
{[%clk 0:01:07.5]} 44... Kd7 {[%clk 0:00:19.9]} 45. Rh7+ {[%clk 0:00:48.7]}
45... Re7 {[%clk 0:00:17.2]} 46. Rh8 {[%clk 0:00:49.7]} 46... Re8 {[%clk
0:00:15.9]} 47. Rxe8 {[%clk 0:00:47.6]} 47... Kxe8 {[%clk 0:00:16.9]} 48. Nd4
{[%clk 0:00:30.9]} 48... Nxd4 {[%clk 0:00:11.4]} 49. Rxd4 {[%clk 0:00:32.8]}
49... c3 {[%clk 0:00:13.1]} 50. bxc3 {[%clk 0:00:34.6]} 50... b2 {[%clk
0:00:02.2]} 51. Rb4 {[%clk 0:00:34.8]} 1-0

[Event "*** MasterClass Titled Tuesday Blitz"]
[Site "Chess.com"]
[Date "2017.12.05"]
[Round "2"]
[White "Koksik_13"]
[Black "oogee"]
[Result "0-1"]
[WhiteElo "2186"]
[BlackElo "2165"]
[TimeControl "180+2"]
[EndTime "14:39:00 PST"]
[Termination "oogee won by checkmate"]

1. e4 {[%clk 0:02:55.2]} 1... c5 {[%clk 0:02:45.5]} 2. Nf3 {[%clk 0:02:55.3]}
2... d6 {[%clk 0:02:45.8]} 3. Bc4 {[%clk 0:02:54.3]} 3... Nf6 {[%clk 0:02:43.1]}
4. O-O {[%clk 0:02:52.7]} 4... Nc6 {[%clk 0:02:43.8]} 5. c3 {[%clk 0:02:52.4]}
5... e6 {[%clk 0:02:40.6]} 6. d4 {[%clk 0:02:53.5]} 6... cxd4 {[%clk 0:02:40.6]}
7. cxd4 {[%clk 0:02:54.1]} 7... d5 {[%clk 0:02:41.8]} 8. exd5 {[%clk 0:02:53]}
8... Nxd5 {[%clk 0:02:41.5]} 9. Nc3 {[%clk 0:02:53.5]} 9... Nb6 {[%clk
0:02:15.6]} 10. Bd3 {[%clk 0:02:53.3]} 10... Be7 {[%clk 0:02:12.6]} 11. h4
{[%clk 0:02:49.6]} 11... Bxh4 {[%clk 0:02:08.2]} 12. Bf4 {[%clk 0:02:47.9]}
12... Bf6 {[%clk 0:02:06.1]} 13. Qe2 {[%clk 0:02:45.3]} 13... Nxd4 {[%clk
0:02:05.3]} 14. Nxd4 {[%clk 0:02:46]} 14... Qxd4 {[%clk 0:02:06.1]} 15. Bg3
{[%clk 0:02:41.4]} 15... O-O {[%clk 0:02:03.7]} 16. Nb5 {[%clk 0:02:41.3]} 16...
Qxb2 {[%clk 0:02:02.6]} 17. Qe4 {[%clk 0:02:30.5]} 17... g6 {[%clk 0:01:57.3]}
18. Nc7 {[%clk 0:02:22]} 18... Bd7 {[%clk 0:01:53.3]} 19. Nxa8 {[%clk 0:02:21]}
19... Bc6 {[%clk 0:01:53.8]} 20. Qf4 {[%clk 0:01:52.5]} 20... Rxa8 {[%clk
0:01:52.3]} 21. Rad1 {[%clk 0:01:52]} 21... Nd5 {[%clk 0:01:50.7]} 22. Qg4
{[%clk 0:01:47.5]} 22... Qxa2 {[%clk 0:01:48.9]} 23. Be4 {[%clk 0:01:28]} 23...
a5 {[%clk 0:01:15.8]} 24. Qf3 {[%clk 0:01:20.8]} 24... Bg7 {[%clk 0:01:13.7]}
25. Rc1 {[%clk 0:00:58.3]} 25... a4 {[%clk 0:01:11.7]} 26. Bd6 {[%clk 0:00:48]}
26... Qb3 {[%clk 0:01:06.4]} 27. Qd1 {[%clk 0:00:06.2]} 27... Qxd1 {[%clk
0:01:05.6]} 28. Rfxd1 {[%clk 0:00:06.5]} 28... a3 {[%clk 0:01:02.8]} 29. Bb1
{[%clk 0:00:03.8]} 29... Nc3 {[%clk 0:00:57.8]} 30. Re1 {[%clk 0:00:03.8]} 30...
Nxb1 {[%clk 0:00:57.6]} 31. Rxb1 {[%clk 0:00:05.2]} 31... a2 {[%clk 0:00:58.9]}
32. Ra1 {[%clk 0:00:04.3]} 32... Bd5 {[%clk 0:00:49.5]} 33. Be5 {[%clk
0:00:05.1]} 33... Bxe5 {[%clk 0:00:45.7]} 34. Rxe5 {[%clk 0:00:06.2]} 34... b5
{[%clk 0:00:47]} 35. Re2 {[%clk 0:00:07.2]} 35... b4 {[%clk 0:00:47.4]} 36. Rb2
{[%clk 0:00:08.3]} 36... b3 {[%clk 0:00:48.2]} 37. f3 {[%clk 0:00:06.7]} 37...
e5 {[%clk 0:00:35.4]} 38. Kf2 {[%clk 0:00:08]} 38... f5 {[%clk 0:00:36.1]} 39.
Rd2 {[%clk 0:00:09]} 39... Rb8 {[%clk 0:00:32.6]} 40. Rb2 {[%clk 0:00:07.8]}
40... Kf7 {[%clk 0:00:32.1]} 41. Rd1 {[%clk 0:00:07.6]} 41... Ke6 {[%clk
0:00:31.2]} 42. Ke3 {[%clk 0:00:08.5]} 42... g5 {[%clk 0:00:31.6]} 43. Kd2
{[%clk 0:00:09]} 43... h5 {[%clk 0:00:31.5]} 44. Rh1 {[%clk 0:00:09.4]} 44... h4
{[%clk 0:00:31.5]} 45. Kc3 {[%clk 0:00:10.1]} 45... Rc8+ {[%clk 0:00:30.7]} 46.
Kb4 {[%clk 0:00:11.1]} 46... g4 {[%clk 0:00:26.7]} 47. Ra1 {[%clk 0:00:06.2]}
47... Rb8+ {[%clk 0:00:21.3]} 48. Kc3 {[%clk 0:00:05.2]} 48... gxf3 {[%clk
0:00:20.9]} 49. gxf3 {[%clk 0:00:06.4]} 49... h3 {[%clk 0:00:22]} 50. Rh2 {[%clk
0:00:07.4]} 50... Bxf3 {[%clk 0:00:19.4]} 51. Kb2 {[%clk 0:00:07]} 51... Bg4
{[%clk 0:00:19.2]} 52. Rc1 {[%clk 0:00:04.9]} 52... e4 {[%clk 0:00:18.1]} 53.
Rd2 {[%clk 0:00:05.4]} 53... e3 {[%clk 0:00:18.2]} 54. Rd4 {[%clk 0:00:05.7]}
54... Ke5 {[%clk 0:00:18.7]} 55. Rd7 {[%clk 0:00:06.3]} 55... e2 {[%clk
0:00:18.1]} 56. Re1 {[%clk 0:00:04]} 56... f4 {[%clk 0:00:17.8]} 57. Re7+ {[%clk
0:00:04.6]} 57... Kf6 {[%clk 0:00:18]} 58. Re4 {[%clk 0:00:05.5]} 58... Kf5
{[%clk 0:00:19]} 59. Re7 {[%clk 0:00:06.8]} 59... f3 {[%clk 0:00:20]} 60. Rg7
{[%clk 0:00:07]} 60... Kf4 {[%clk 0:00:18.9]} 61. Rg1 {[%clk 0:00:06.2]} 61...
Bf5 {[%clk 0:00:16.6]} 62. Rf7 {[%clk 0:00:07.3]} 62... f2 {[%clk 0:00:17.3]}
63. Rc1 {[%clk 0:00:04.9]} 63... e1=Q {[%clk 0:00:16.6]} 64. Rc4+ {[%clk
0:00:05.8]} 64... Qe4 {[%clk 0:00:17.3]} 65. Rxe4+ {[%clk 0:00:06.4]} 65... Kxe4
{[%clk 0:00:18.5]} 66. Ka3 {[%clk 0:00:04.2]} 66... a1=Q# {[%clk 0:00:18.5]} 0-1

[Event "*** MasterClass Titled Tuesday Blitz"]
[Site "Chess.com"]
[Date "2017.12.05"]
[Round "2"]
[White "mikelito7"]
[Black "PivixBanni"]
[Result "0-1"]
[WhiteElo "1362"]
[BlackElo "1354"]
[TimeControl "180+2"]
[EndTime "14:39:15 PST"]
[Termination "PivixBanni won by resignation"]

1. d4 {[%clk 0:03:00.2]} 1... d5 {[%clk 0:02:50.8]} 2. c4 {[%clk 0:03:00.5]}
2... c6 {[%clk 0:02:51.3]} 3. cxd5 {[%clk 0:03:01.4]} 3... cxd5 {[%clk
0:02:50.9]} 4. Nc3 {[%clk 0:03:02.9]} 4... Nf6 {[%clk 0:02:51.1]} 5. e4 {[%clk
0:03:02.2]} 5... e6 {[%clk 0:02:43]} 6. exd5 {[%clk 0:03:01.5]} 6... Nxd5 {[%clk
0:02:44.9]} 7. Nxd5 {[%clk 0:02:58.3]} 7... Qxd5 {[%clk 0:02:46.8]} 8. Nf3
{[%clk 0:02:56]} 8... Nc6 {[%clk 0:02:41.1]} 9. b3 {[%clk 0:02:56.6]} 9... Bd6
{[%clk 0:02:38.7]} 10. Bc4 {[%clk 0:02:56.8]} 10... Qa5+ {[%clk 0:02:34.8]} 11.
Bd2 {[%clk 0:02:57.1]} 11... Qd8 {[%clk 0:02:35.8]} 12. O-O {[%clk 0:02:53.5]}
12... O-O {[%clk 0:02:35.8]} 13. Be3 {[%clk 0:02:52.2]} 13... a6 {[%clk
0:02:35.2]} 14. a4 {[%clk 0:02:51.6]} 14... Nb4 {[%clk 0:02:30.7]} 15. Ng5
{[%clk 0:02:46.6]} 15... h6 {[%clk 0:02:18.9]} 16. Ne4 {[%clk 0:02:46.4]} 16...
Be7 {[%clk 0:02:15.5]} 17. Qh5 {[%clk 0:02:44.9]} 17... Nc2 {[%clk 0:02:01.9]}
18. Bxh6 {[%clk 0:02:38.9]} 18... gxh6 {[%clk 0:01:59.3]} 19. Qxh6 {[%clk
0:02:36.6]} 19... Nxd4 {[%clk 0:01:48.5]} 20. Rad1 {[%clk 0:02:24.8]} 20... e5
{[%clk 0:01:46]} 21. Bd3 {[%clk 0:02:18.4]} 21... Bf5 {[%clk 0:01:45.2]} 22.
Nf6+ {[%clk 0:02:15.5]} 22... Bxf6 {[%clk 0:01:42.8]} 23. Bxf5 {[%clk
0:02:16.2]} 23... Nxf5 {[%clk 0:01:42.3]} 24. Rxd8 {[%clk 0:02:12.7]} 24... Nxh6
{[%clk 0:01:42.8]} 25. Rxf8+ {[%clk 0:02:13]} 25... Rxf8 {[%clk 0:01:44.7]} 26.
f4 {[%clk 0:02:09.9]} 26... exf4 {[%clk 0:01:37.1]} 27. Rxf4 {[%clk 0:02:10.1]}
27... Kg7 {[%clk 0:01:38.5]} 28. g4 {[%clk 0:02:08.5]} 28... Rd8 {[%clk
0:01:33.3]} 29. Rb4 {[%clk 0:02:07.9]} 29... Bd4+ {[%clk 0:01:23]} 30. Kg2
{[%clk 0:02:06.9]} 30... b6 {[%clk 0:01:21.5]} 31. h3 {[%clk 0:02:06.1]} 31...
Bc5 {[%clk 0:01:20.1]} 32. Re4 {[%clk 0:02:03.9]} 32... Rd4 {[%clk 0:01:20.1]}
33. Re5 {[%clk 0:01:58.4]} 33... Rd3 {[%clk 0:01:08.4]} 34. g5 {[%clk
0:01:51.8]} 34... Ng8 {[%clk 0:01:02.8]} 35. h4 {[%clk 0:01:52]} 35... Rxb3
{[%clk 0:01:01.5]} 36. h5 {[%clk 0:01:52.4]} 36... f6 {[%clk 0:01:02.7]} 37. h6+
{[%clk 0:01:47.4]} 37... Kh7 {[%clk 0:00:59.9]} 38. Rf5 {[%clk 0:01:36.9]} 38...
fxg5 {[%clk 0:00:56]} 39. Rxg5 {[%clk 0:01:36.7]} 39... Nxh6 {[%clk 0:00:56.1]}
40. Kh2 {[%clk 0:01:28.9]} 40... Rb4 {[%clk 0:00:54.6]} 41. a5 {[%clk 0:01:29]}
41... Ng4+ {[%clk 0:00:48.6]} 42. Kg3 {[%clk 0:01:29.2]} 42... Bf2+ {[%clk
0:00:47.5]} 43. Kf3 {[%clk 0:01:25.1]} 43... Bc5 {[%clk 0:00:22.4]} 44. axb6
{[%clk 0:01:23.2]} 44... Bxb6 {[%clk 0:00:21.3]} 45. Rd5 {[%clk 0:01:20.4]}
45... Nf6 {[%clk 0:00:07.9]} 46. Rd6 {[%clk 0:01:19.1]} 46... Rb3+ {[%clk
0:00:09.4]} 47. Ke2 {[%clk 0:01:16.9]} 47... Ne4 {[%clk 0:00:09.8]} 48. Rd7+
{[%clk 0:01:17.2]} 48... Kg6 {[%clk 0:00:10.3]} 49. Kd1 {[%clk 0:01:09.8]} 49...
Kf5 {[%clk 0:00:10.7]} 50. Kc2 {[%clk 0:01:10]} 50... Rb4 {[%clk 0:00:10.4]} 51.
Rd8 {[%clk 0:01:09.4]} 51... Ke5 {[%clk 0:00:10.8]} 52. Re8+ {[%clk 0:01:06.9]}
52... Kd4 {[%clk 0:00:11.3]} 53. Rh8 {[%clk 0:01:05.5]} 53... Ke3 {[%clk
0:00:09.4]} 54. Rh3+ {[%clk 0:01:02.3]} 54... Kd4 {[%clk 0:00:10.3]} 55. Rf3
{[%clk 0:01:01]} 55... Rc4+ {[%clk 0:00:09.6]} 56. Kb2 {[%clk 0:00:59]} 56...
Nd2 {[%clk 0:00:09.2]} 57. Rf4+ {[%clk 0:00:56.4]} 57... Kd3 {[%clk 0:00:10.2]}
58. Rf7 {[%clk 0:00:53.5]} 58... a5 {[%clk 0:00:10]} 59. Rd7+ {[%clk 0:00:51.6]}
59... Ke3 {[%clk 0:00:10.1]} 60. Re7+ {[%clk 0:00:50.6]} 60... Kd4 {[%clk
0:00:08.4]} 61. Rd7+ {[%clk 0:00:50.8]} 61... Ke3 {[%clk 0:00:07.7]} 62. Rd6
{[%clk 0:00:49.3]} 62... Rb4+ {[%clk 0:00:08.3]} 63. Kc2 {[%clk 0:00:46.7]}
63... Nc4 {[%clk 0:00:10.2]} 64. Re6+ {[%clk 0:00:43.5]} 64... Kd4 {[%clk
0:00:10.7]} 65. Rh6 {[%clk 0:00:42.1]} 65... a4 {[%clk 0:00:10.8]} 66. Rh4+
{[%clk 0:00:39.9]} 66... Kc5 {[%clk 0:00:11.3]} 67. Kd3 {[%clk 0:00:40.6]} 67...
Nb2+ {[%clk 0:00:11.9]} 68. Kc3 {[%clk 0:00:40.6]} 68... Rxh4 {[%clk 0:00:13.8]}
69. Kxb2 {[%clk 0:00:40.8]} 69... Kb4 {[%clk 0:00:15.3]} 70. Ka1 {[%clk
0:00:40]} 70... Rh3 {[%clk 0:00:17.2]} 0-1

[Event "*** MasterClass Titled Tuesday Blitz"]
[Site "Chess.com"]
[Date "2017.12.05"]
[Round "2"]
[White "penguingm1"]
[Black "temiksmozg"]
[Result "0-1"]
[WhiteElo "2611"]
[BlackElo "2497"]
[TimeControl "180+2"]
[EndTime "14:39:30 PST"]
[Termination "temiksmozg won by resignation"]

1. d4 {[%clk 0:02:36.6]} 1... Nf6 {[%clk 0:02:57.9]} 2. c4 {[%clk 0:02:36.3]}
2... e6 {[%clk 0:02:58.4]} 3. Nc3 {[%clk 0:02:37.3]} 3... d5 {[%clk 0:02:57.4]}
4. cxd5 {[%clk 0:02:37.9]} 4... exd5 {[%clk 0:02:55.3]} 5. Bg5 {[%clk
0:02:38.6]} 5... c6 {[%clk 0:02:55.7]} 6. e3 {[%clk 0:02:39.7]} 6... Bf5 {[%clk
0:02:57]} 7. Qf3 {[%clk 0:02:39.8]} 7... Bg6 {[%clk 0:02:58.1]} 8. Bxf6 {[%clk
0:02:41.1]} 8... Qxf6 {[%clk 0:02:59.7]} 9. Qxf6 {[%clk 0:02:42.4]} 9... gxf6
{[%clk 0:03:01.3]} 10. h4 {[%clk 0:02:44]} 10... h5 {[%clk 0:02:54.8]} 11. Kd2
{[%clk 0:02:44.9]} 11... Nd7 {[%clk 0:02:55.8]} 12. Nge2 {[%clk 0:02:45.9]}
12... Nb6 {[%clk 0:02:48.6]} 13. Nf4 {[%clk 0:02:45.2]} 13... Nc8 {[%clk
0:02:43.3]} 14. Bd3 {[%clk 0:02:15.5]} 14... Rh6 {[%clk 0:02:36.5]} 15. Nce2
{[%clk 0:02:15.8]} 15... Nd6 {[%clk 0:02:30.7]} 16. Ng3 {[%clk 0:02:15.4]} 16...
f5 {[%clk 0:02:23.1]} 17. Ke2 {[%clk 0:02:09.4]} 17... Ne4 {[%clk 0:02:21.3]}
18. Nf1 {[%clk 0:02:08.6]} 18... Bd6 {[%clk 0:01:47.5]} 19. f3 {[%clk
0:02:08.6]} 19... Bxf4 {[%clk 0:01:37.6]} 20. exf4 {[%clk 0:02:10.5]} 20... Nd6
{[%clk 0:01:37.5]} 21. Ng3 {[%clk 0:02:11.2]} 21... Kd7 {[%clk 0:01:26.8]} 22.
Kf2 {[%clk 0:02:12]} 22... Bh7 {[%clk 0:01:16.8]} 23. Rac1 {[%clk 0:02:10.4]}
23... a5 {[%clk 0:01:09.6]} 24. Rhe1 {[%clk 0:02:06.2]} 24... Rg8 {[%clk
0:01:04.6]} 25. Rg1 {[%clk 0:01:51.4]} 25... Ra8 {[%clk 0:00:58.7]} 26. Rce1
{[%clk 0:01:48.1]} 26... f6 {[%clk 0:00:54.7]} 27. Re2 {[%clk 0:01:46.7]} 27...
Re8 {[%clk 0:00:53.8]} 28. Rxe8 {[%clk 0:01:44.4]} 28... Kxe8 {[%clk 0:00:55.7]}
29. Rb1 {[%clk 0:01:42.7]} 29... Bg6 {[%clk 0:00:50.6]} 30. Bc2 {[%clk
0:01:37.1]} 30... Kd7 {[%clk 0:00:49]} 31. a3 {[%clk 0:01:37.9]} 31... Rh8
{[%clk 0:00:49]} 32. b4 {[%clk 0:01:38.7]} 32... axb4 {[%clk 0:00:50.9]} 33.
axb4 {[%clk 0:01:40]} 33... Ra8 {[%clk 0:00:51.4]} 34. Rb2 {[%clk 0:01:36.8]}
34... Ra1 {[%clk 0:00:47.1]} 35. Bd3 {[%clk 0:01:34]} 35... Ra3 {[%clk
0:00:41.4]} 36. Ke2 {[%clk 0:01:32]} 36... Ra1 {[%clk 0:00:37.5]} 37. Nf1 {[%clk
0:01:31.4]} 37... Bf7 {[%clk 0:00:34.7]} 38. b5 {[%clk 0:01:28.2]} 38... b6
{[%clk 0:00:32.8]} 39. bxc6+ {[%clk 0:01:27.6]} 39... Kxc6 {[%clk 0:00:34.7]}
40. Rc2+ {[%clk 0:01:28.7]} 40... Kd7 {[%clk 0:00:34.1]} 41. Ne3 {[%clk
0:01:29.9]} 41... Be6 {[%clk 0:00:35.1]} 42. Rb2 {[%clk 0:01:30.9]} 42... Kc6
{[%clk 0:00:34.6]} 43. Rc2+ {[%clk 0:01:17.4]} 43... Kd7 {[%clk 0:00:35]} 44.
Kd2 {[%clk 0:01:09.8]} 44... Rh1 {[%clk 0:00:33]} 45. g3 {[%clk 0:01:10.3]}
45... Rg1 {[%clk 0:00:29.3]} 46. Nf1 {[%clk 0:01:10.9]} 46... Nc4+ {[%clk
0:00:21.4]} 47. Kc3 {[%clk 0:01:08]} 47... Kc6 {[%clk 0:00:18.6]} 48. Ra2 {[%clk
0:01:00.7]} 48... Kb7 {[%clk 0:00:13.2]} 49. Kb4 {[%clk 0:01:00.6]} 49... Bd7
{[%clk 0:00:11]} 50. Ra1 {[%clk 0:00:48.8]} 50... Bc6 {[%clk 0:00:11.2]} 51. Re1
{[%clk 0:00:49.2]} 51... Kc7 {[%clk 0:00:09.6]} 52. Re6 {[%clk 0:00:45.6]} 52...
Nb2 {[%clk 0:00:10.5]} 53. Be2 {[%clk 0:00:44.4]} 53... Rg2 {[%clk 0:00:11.2]}
54. Kc3 {[%clk 0:00:21.5]} 54... Rf2 {[%clk 0:00:10]} 55. Re3 {[%clk 0:00:07.8]}
55... Nc4 {[%clk 0:00:10.6]} 56. Bxc4 {[%clk 0:00:07.1]} 56... dxc4 {[%clk
0:00:12.5]} 57. Nd2 {[%clk 0:00:07.4]} 57... b5 {[%clk 0:00:12.7]} 58. Nb1
{[%clk 0:00:05.5]} 58... Kb6 {[%clk 0:00:13.2]} 59. Re6 {[%clk 0:00:05.7]} 59...
Kc7 {[%clk 0:00:11.5]} 60. Rxf6 {[%clk 0:00:06.4]} 60... Rxf3+ {[%clk
0:00:12.9]} 61. Kc2 {[%clk 0:00:07.9]} 61... Be4+ {[%clk 0:00:13.3]} 62. Kd2
{[%clk 0:00:08.4]} 62... b4 {[%clk 0:00:14.5]} 63. Ke2 {[%clk 0:00:06.6]} 63...
Rxg3 {[%clk 0:00:15]} 64. Nd2 {[%clk 0:00:07.8]} 64... Bd3+ {[%clk 0:00:15.1]}
65. Kf2 {[%clk 0:00:08.8]} 65... Rh3 {[%clk 0:00:15.5]} 66. Nf3 {[%clk
0:00:10.2]} 66... Be4 {[%clk 0:00:14.4]} 67. Ne5 {[%clk 0:00:08]} 67... c3
{[%clk 0:00:14]} 68. Rf7+ {[%clk 0:00:09.4]} 68... Kb6 {[%clk 0:00:12.5]} 69.
Nc4+ {[%clk 0:00:10.5]} 69... Kb5 {[%clk 0:00:13.5]} 70. Ne3 {[%clk 0:00:11.7]}
70... c2 {[%clk 0:00:13.1]} 71. Rc7 {[%clk 0:00:05.5]} 71... b3 {[%clk
0:00:14.1]} 72. d5 {[%clk 0:00:07]} 72... Rxe3 {[%clk 0:00:14.6]} 73. Kxe3
{[%clk 0:00:06.1]} 73... b2 {[%clk 0:00:15.5]} 74. d6 {[%clk 0:00:02.8]} 74...
c1=Q+ {[%clk 0:00:16.8]} 0-1